[Event "45th FIDE Olympiad 2024"]
[Site "Budapest"]
[Date "2024.09.15"]
[Round "5.92"]
[White "Kabilov, Amin"]
[Black "Baidetskyi, Valentin"]
[Result "1/2-1/2"]
[ECO "E10"]
[WhiteElo "2212"]
[BlackElo "2512"]
[Annotator "TA"]
[PlyCount "114"]
[EventDate "2024.09.05"]
[EventType "team-tourn"]
[EventCountry "HUN"]
[SourceTitle "playchess.com"]
[Source "ChessBase"]
[SourceQuality "1"]
[WhiteTeam "Tajikistan"]
[BlackTeam "Austria"]
[WhiteTeamCountry "TJK"]
[BlackTeamCountry "AUT"]
[TimeControl "40/5400+30:1800+30"]

{[%evp 9,114,25,31,33,20,17,36,7,24,21,24,16,14,18,17,6,24,10,13,15,20,26,25,34,84,89,86,96,101,108,100,102,101,98,103,64,71,78,81,63,77,76,73,73,123,88,85,92,103,97,134,100,142,97,107,100,221,150,162,125,127,103,133,27,17,19,12,0,0,0,0,0,0,0,0,0,0,0,0,0,0,0,0,0,0,0,0,0,0,0,0,0,0,0,0,0,0,0,0,0,0,0,0,0,0,0,0]} 1. d4 Nf6 2. Nf3 e6 3. c4 h6 4. Nc3 Bb4 5. Bd2 c5 6. a3 Bxc3 7. Bxc3 Ne4 8. Rc1 {White is slightly better.} b6 9. g3 Bb7 10. Bg2 O-O 11. O-O d6 12. Qd3 {And now Nd2 would win.} Qe7 13. Rfd1 Nd7 {[%cal Bb8d7,Bd7f6,Bf6d5][%mdl 32] [#]} 14. Ng5 $1 Qxg5 (14... hxg5 15. Bxe4) 15. Bxe4 Bxe4 16. Qxe4 d5 (16... Rfd8 $14) 17. cxd5 $16 Nf6 18. Qf3 Nxd5 19. Bd2 Qe7 20. e4 Nf6 21. dxc5 bxc5 22. Bc3 Nd7 23. Qg4 {[%csl Gc3][%cal Rg4g7] [#]} f6 24. Rd3 Rf7 {[%cal Bf8f7,Bf7c7,Bc7c6][%mdl 32]} 25. Rcd1 Nf8 26. Rd6 Re8 ({Black should try} 26... Qb7) 27. Qe2 {White has more active pieces.} Qb7 28. Qc4 Rc7 29. a4 {[%cal Ba3a4,Ba4a5][%mdl 32]} Rc6 30. Rd8 Rc8 31. R8d2 Kh8 32. a5 a6 (32... e5 $16) 33. f3 Qb5 34. Qxb5 axb5 35. b4 e5 36. bxc5 (36. a6 $16) 36... Rxc5 $11 37. Bb4 {The position is equal.} Rc4 38. Bxf8 Rxf8 39. Rd8 Rxd8 40. Rxd8+ {[%mdl 4096] Endgame. KR-KR} Kh7 41. Rb8 b4 42. g4 Kg6 43. Kg2 h5 44. gxh5+ Kxh5 45. Kg3 {a6 would now be deadly.} Rc5 46. Rxb4 (46. a6 $5 Ra5 $8 47. Rxb4 $11) 46... Rxa5 47. Rb8 Ra1 48. Rh8+ Kg6 49. h4 Rb1 50. Kg2 Rd1 51. Kg3 Kf7 52. Rc8 Rg1+ 53. Kf2 Rg6 54. Rb8 Rh6 55. Kg3 Kg6 56. Kg4 Rh7 57. Rf8 Rh6 {Weighted Error Value: White=0.13 (very precise) /Black=0.10 (very precise) .  Mistake:       	White=1     	Black=3      Inaccurate:     	White=4     	Black=2      OK:         	White=14    	Black=22     Best:        	White=3     	Black=1} 1/2-1/2

[Event "45th FIDE Olympiad 2024"]
[Site "Budapest"]
[Date "2024.09.15"]
[Round "5.93"]
[White "Susilodinata, Andrean"]
[Black "Mchedlishvili, Mikheil"]
[Result "1/2-1/2"]
[ECO "B06"]
[WhiteElo "2393"]
[BlackElo "2574"]
[Annotator "TA"]
[PlyCount "61"]
[EventDate "2024.09.05"]
[EventType "team-tourn"]
[EventCountry "HUN"]
[SourceTitle "playchess.com"]
[Source "ChessBase"]
[SourceQuality "1"]
[WhiteTeam "Indonesia"]
[BlackTeam "Georgia"]
[WhiteTeamCountry "INA"]
[BlackTeamCountry "GEO"]
[TimeControl "40/5400+30:1800+30"]

{[%evp 11,61,40,18,4,48,20,26,10,22,24,45,16,59,62,93,105,86,96,102,81,74,64,61,50,54,50,41,11,22,12,65,8,10,8,10,15,25,22,17,12,12,12,19,17,25,22,14,0,0,6,20,0]} 1. e4 c5 2. c3 d5 3. exd5 Qxd5 4. d4 g6 5. Nf3 Bg7 6. Na3 cxd4 7. Bc4 Qd8 (7... Qe4+ $5 8. Be3 Nh6 $11 (8... dxe3 $2 9. Bxf7+ Kxf7 10. Ng5+ Ke8 11. Nxe4 $18)) 8. Nb5 {[#] Threatens to win with Bf4.} ({Reject} 8. cxd4 Nf6 $11) 8... Nf6 9. Qxd4 {White has an edge.} (9. Nbxd4 {simplifies} Nc6 10. O-O Nxd4 11. Nxd4 O-O 12. Re1) 9... Bd7 10. O-O {[%cal Oc4f7] Black must now prevent Bxf7+!} Nc6 11. Qh4 Bg4 12. Nbd4 {And now Nxc6 would win.} Qc7 13. Nxc6 bxc6 14. Ng5 e6 15. Re1 {Strongly threatening f3.} h6 16. Ne4 {White is more active.} (16. Nxe6 $5 fxe6 (16... Bxe6 17. Bxe6 fxe6 18. Rxe6+ Kf7 19. Qc4 $16) 17. Bxe6 $16) 16... Nxe4 17. Qxg4 Nf6 18. Qh3 {[%cal Oe1e6]} Nd5 19. a4 a5 20. Bd2 h5 ({Black should try} 20... Rb8 $11) 21. Rad1 (21. Rxe6+ $1 $14 fxe6 22. Qxe6+ Kf8 23. Re1 (23. Qxg6 Re8 $17)) 21... O-O $11 22. Qf3 Qb7 23. Bc1 Rad8 24. h3 Rd7 25. Bd3 Qb3 26. Qe4 Rfd8 27. Bc2 Qb6 28. Qc4 Qc7 {The position is equal.} 29. h4 Qb6 30. g3 Qc7 31. Bg5 {Weighted Error Value: White=0.09 (flawless) /Black=0.09 (flawless) .  Mistake:       	White=1     	Black=1      Inaccurate:     	White=2     	Black=3      OK:         	White=10    	Black=11     Best:        	White=1     	Black=1} 1/2-1/2

[Event "45th FIDE Olympiad 2024"]
[Site "Budapest"]
[Date "2024.09.15"]
[Round "5.94"]
[White "Paichadze, Luka"]
[Black "Cahaya, Satria Duta"]
[Result "1-0"]
[ECO "B31"]
[WhiteElo "2516"]
[BlackElo "2219"]
[Annotator "TA"]
[PlyCount "101"]
[EventDate "2024.09.05"]
[EventType "team-tourn"]
[EventCountry "HUN"]
[SourceTitle "playchess.com"]
[Source "ChessBase"]
[SourceQuality "1"]
[WhiteTeam "Georgia"]
[BlackTeam "Indonesia"]
[WhiteTeamCountry "GEO"]
[BlackTeamCountry "INA"]
[TimeControl "40/5400+30:1800+30"]

{[%evp 18,101,20,15,9,-7,0,0,0,-9,0,-21,-21,-56,-62,-64,-84,-86,-30,-45,0,-72,-74,-87,-84,-82,-72,-79,0,0,0,0,0,0,0,0,100,104,120,116,135,39,26,29,20,20,14,14,90,78,111,93,90,90,82,93,116,102,121,122,239,234,275,259,358,349,382,375,429,431,599,461,450,448,466,466,510,509,1000,1000,29978,29972,29972,29973,29963,11415]} 1. e4 c5 2. Nf3 Nc6 3. Bb5 g6 4. Bxc6 dxc6 5. d3 Bg7 6. h3 Nf6 7. Nc3 Nd7 8. Be3 e5 9. O-O Qe7 10. Qd2 Nf8 11. Bh6 f6 12. Bxg7 Qxg7 {The position is equal.} 13. Ne2 g5 14. Nh2 Ng6 15. b4 cxb4 16. d4 Qe7 17. dxe5 fxe5 (17... Nxe5 $17 18. Ng3 Qc5) 18. Rfb1 a5 19. a3 bxa3 $17 20. Qc3 O-O 21. Rxa3 {[#]} a4 $1 22. Ng3 Qd6 (22... b5 $17) 23. Rxa4 $1 $11 Rxa4 24. Qb3+ Kh8 25. Qxa4 Qc5 $1 {Prevents Qa5} 26. Rf1 Be6 (26... Nf4 $11) 27. Ng4 $16 b5 28. Qa5 Qxc2 29. Qc7 (29. Qb6 $16) 29... Qc5 $1 $14 (29... Bxg4 $2 30. hxg4 Qb3 31. Nf5 $18 (31. Qxc6 Qc4 $18)) 30. Nh5 {Excellent horsemanship.} Rf7 31. Qd8+ Qf8 32. Qxg5 Bxg4 (32... Qe7 $1 $11 {keeps the balance.} 33. Qh6 Bxg4 34. hxg4 b4) 33. hxg4 $16 {Black is on the road to losing.} Qe7 34. Qe3 Qd7 35. Ra1 Rf8 {[%cal Od7d4] Prevents Ra8} (35... Qxg4 $2 36. Ra8+ Rf8 37. Qh6 Qd1+ 38. Kh2 $18) 36. Qh6 Qf7 37. f3 b4 38. Qe3 {Wards off c5. Strongly threatening Ra7. White is much more active.} b3 {[#]} (38... Qd7 $16) 39. Qb6 $1 $18 {[%cal Oa1a7]} Qe6 40. Rb1 Qd6 41. Qb7 ({Resist} 41. Rxb3 Nf4 42. Nxf4 exf4 $18) ({Don't do} 41. Qxb3 Nf4 42. Nxf4 exf4 43. Qc3+ Qf6 $18) 41... Rg8 {Prevents Qg7+.} 42. Qxb3 Qd4+ 43. Kh2 c5 44. Qb6 {White wants to mate with Qf6+.} Qd8 45. Qxc5 Qh4+ 46. Kg1 Qg5 47. Qd6 Rf8 (47... Rc8 $142 48. Rb8 Rg8) 48. Rb8 Kg8 49. Rxf8+ {White mates.} Nxf8 50. Nf6+ Kf7 {[#]} 51. Qxf8+ $3 {[%mdl 512] Weighted Error Value: White=0.15 (very precise) /Black=0.37.  Mistake:       	White=2     	Black=6      Inaccurate:     	White=1     	Black=5      OK:         	White=15    	Black=10     Best:        	White=3     	Black=1      Strong:       	White=2     	Black=3} 1-0

[Event "45th FIDE Olympiad 2024"]
[Site "Budapest"]
[Date "2024.09.15"]
[Round "5.94"]
[White "Abdelaziz Bokhit, Badjoiri"]
[Black "Nicolas, Carbonell"]
[Result "0-1"]
[ECO "C20"]
[WhiteElo "1778"]
[BlackElo "1798"]
[PlyCount "154"]
[EventDate "2024.09.05"]
[EventType "team-tourn"]
[EventCountry "HUN"]
[WhiteTeam "Chad"]
[BlackTeam "Burkina Faso"]
[WhiteTeamCountry "CHD"]
[BlackTeamCountry "BUR"]
[TimeControl "40/5400+30:1800+30"]

1. e4 e5 2. c3 Nf6 3. d4 Nxe4 4. dxe5 Bc5 5. Nh3 d5 6. exd6 O-O 7. Nd2 Bxh3 8. Nxe4 Re8 9. gxh3 Rxe4+ 10. Be2 Qxd6 11. Qxd6 cxd6 12. Kd1 Nc6 13. b4 Bxf2 14. Rf1 Be3 15. Bd3 Re7 16. b5 Ne5 17. Bxh7+ Kxh7 18. Bxe3 Nc4 19. Bd4 Rae8 20. Kc2 f6 21. Rf2 Na3+ 22. Kb2 Nxb5 23. Rd1 Re2+ 24. Rd2 Nxd4 25. cxd4 R2e3 26. h4 R8e4 27. h5 Rh4 28. Rc2 Rxd4 29. Rc7 Rb4+ 30. Kc2 Kh6 31. Rg2 Ra4 32. Kb2 Rh4 33. Rcxg7 Rxh2 34. Rxh2 Kxg7 35. Rg2+ Kh7 36. Rg6 Rf3 37. a4 d5 38. Kc2 d4 39. Kd2 d3 40. a5 b6 41. a6 b5 42. Rg4 Kh6 43. Rg6+ Kh7 44. Rg4 Rf2+ 45. Kxd3 Ra2 46. Rb4 Ra5 47. Ke3 Kh6 48. Kf3 Kxh5 49. Kg3 Kg5 50. Kf3 Kf5 51. Rf4+ Ke5 52. Re4+ Kd5 53. Rf4 Rxa6 54. Rf5+ Kc4 55. Ke2 Rd6 56. Rf4+ Kc3 57. Rf1 Kc2 58. Ra1 a6 59. Ra5 Re6+ 60. Kf3 Rc6 61. Ke2 Kb2 62. Kd1 Rc1+ 63. Kd2 Ra1 64. Rxa1 Kxa1 65. Ke3 b4 66. Ke4 b3 67. Kf5 b2 68. Kxf6 b1=Q 69. Ke6 a5 70. Ke5 a4 71. Kd4 a3 72. Kc3 Qd1 73. Kb4 Kb2 74. Kc4 a2 75. Kb4 a1=Q 76. Kb5 Qd5+ 77. Kb6 Qaa5# {0-} 0-1

[Event "45th FIDE Olympiad 2024"]
[Site "Budapest"]
[Date "2024.09.15"]
[Round "5.95"]
[White "Ulhaq, Zacky Dhia"]
[Black "Jobava, Baadur"]
[Result "1-0"]
[ECO "D00"]
[WhiteElo "2203"]
[BlackElo "2582"]
[Annotator "TA"]
[PlyCount "120"]
[EventDate "2024.09.05"]
[EventType "team-tourn"]
[EventCountry "HUN"]
[SourceTitle "playchess.com"]
[Source "ChessBase"]
[SourceQuality "1"]
[WhiteTeam "Indonesia"]
[BlackTeam "Georgia"]
[WhiteTeamCountry "INA"]
[BlackTeamCountry "GEO"]
[TimeControl "40/5400+30:1800+30"]

{[%evp 9,120,7,14,8,12,11,14,0,-3,0,8,-1,-8,-14,0,-39,0,-3,0,0,0,0,0,-14,8,0,0,0,0,-10,0,-11,-8,0,-10,-15,-8,-101,-83,-206,-215,-218,-220,-215,-221,-230,-139,-147,-123,-126,-132,-126,-128,-134,-79,-94,-89,-102,6,0,0,-27,0,-8,-5,-107,-119,-114,-120,-142,-131,-128,-139,-138,-127,-139,-139,-134,-130,-129,-135,-129,-113,-282,-277,-242,-178,-177,-166,-164,-172,-159,-139,-205,-205,-230,-159,-243,-247,-247,-179,-556,-529,-579,-546,-702,-702,-687,-680,-656,-615,-592,-549]} 1. d4 d5 2. Bf4 c5 3. e3 Nc6 4. Nf3 Bg4 5. Nbd2 e6 6. c3 a6 7. Be2 Nf6 8. Ne5 {The position is equal.} Bxe2 9. Qxe2 Rc8 10. h4 Bd6 11. h5 O-O 12. Qf3 Bxe5 13. dxe5 Nd7 14. Qg3 f6 15. exf6 Qxf6 16. h6 g6 17. Bg5 Qe5 18. f4 Qc7 19. O-O c4 20. Qg4 Rce8 21. e4 Nc5 {Black wants to play ...Qb6.} 22. exd5 exd5 23. f5 (23. b3 $11) 23... Qd7 $17 {[%cal Rf8f5]} 24. Nxc4 gxf5 $1 $19 ({But not} 24... Re4 25. Qg3 (25. Rf4 $2 Rxf4 26. Qxf4 Qxf5 $19) 25... dxc4 (25... Rxc4 26. fxg6 Ne6 27. g7 $14) 26. fxg6 $17) 25. Qg3 {aiming for Be7+.} Ne4 $1 26. Nb6 Qe6 27. Qh4 Ne5 28. Be3 Ng6 $1 {Excellent horsemanship.} ({Don't take} 28... Ng4 29. Bd4 $15) 29. Qh3 f4 $1 {Threatens to win with ...Qxh3.} 30. Qxe6+ Rxe6 31. Bd4 {[%cal Oa1e1]} Ng3 ({Better is} 31... Rf5 {And now ...Rg5 would win.} 32. Nd7 Nh4) 32. Nd7 $17 Rf7 33. Nc5 Rc6 (33... Re2 $17 34. Rfe1 Rxb2) 34. Rfe1 $11 Nf8 35. Re5 Rxh6 36. Rae1 Rg6 $36 {[%mdl 2048] next ...f3 is good for Black. Black is pushing.} 37. Ne6 {[#]} (37. Re7 $11) 37... f3 $1 $17 38. Ng5 {[#] Wards off Ne4} Ne4 $1 {[%mdl 512]} 39. R1xe4 (39. Nxe4 Rxg2+) 39... dxe4 40. Nxf7 Rxg2+ 41. Kf1 Kxf7 42. Rxe4 Rxb2 {[%cal Of8e6][%mdl 4096] Endgame. White must now prevent ...Ne6! KRB-KRN} 43. Rf4+ Ke8 44. a3 Ne6 45. Rxf3 Rb3 {[%cal Oe6d4]} 46. Rf6 $2 (46. Re3 $17 {keeps fighting.} Kd7 47. Be5) 46... Nxd4 $19 47. cxd4 Rxa3 {KR-KR} 48. Rb6 Rf3+ 49. Ke2 Rf7 50. Kd3 Kd8 51. Kc4 (51. d5 $17) 51... Rc7+ 52. Kd3 Rg7 53. d5 (53. Rh6 $17) 53... Kc7 54. Rh6 {[#]} b6 $1 {...Rg6 is the strong threat.} 55. Kc4 $2 (55. Ke4 {is more resistant.}) 55... Rg4+ {Black is clearly winning.} 56. Kc3 Rg6 57. Rxh7+ Kd6 58. Rh5 Kc5 59. Kd3 Rg4 60. Ke3 Rb4 {[%mdl 32768] Weighted Error Value: White=0.28 (precise) /Black=0.12 (very precise) .  Loses game:     	White=1     	---        Mistake:       	White=6     	Black=2      Inaccurate:     	White=2     	Black=4      OK:         	White=20    	Black=22     Best:        	White=6     	Black=6      Strong:       	---       	Black=6      Brilliant:      	---       	Black=1     . Loss on time!?} 1-0

[Event "45th FIDE Olympiad 2024"]
[Site "Budapest"]
[Date "2024.09.15"]
[Round "5.96"]
[White "Pantsulaia, Levan"]
[Black "Kristopher, Reynard"]
[Result "1-0"]
[ECO "A11"]
[WhiteElo "2516"]
[BlackElo "2114"]
[Annotator "TA"]
[PlyCount "81"]
[EventDate "2024.09.05"]
[EventType "team-tourn"]
[EventCountry "HUN"]
[SourceTitle "playchess.com"]
[Source "ChessBase"]
[SourceQuality "1"]
[WhiteTeam "Georgia"]
[BlackTeam "Indonesia"]
[WhiteTeamCountry "GEO"]
[BlackTeamCountry "INA"]
[TimeControl "40/5400+30:1800+30"]

{[%evp 10,81,10,11,31,25,32,28,35,25,39,28,41,37,22,31,49,39,45,59,57,57,58,30,57,60,60,69,58,56,79,92,79,82,74,31,42,4,66,66,62,72,58,60,73,52,87,0,161,145,398,408,410,405,600,593,584,377,442,438,926,911,1212,1366,1137,1009,1083,1097,29984,1352,1360,1289,1208,1183]} 1. Nf3 d5 2. c4 c6 3. g3 Nf6 4. Bg2 Bf5 5. Qb3 Qb6 6. d3 e6 7. Be3 {[%cal Bc1e3,Be3d4,Bd4c3,Bc3d2][%mdl 32]} Qxb3 8. axb3 a6 {White has an edge.} 9. Nh4 Bg6 10. Bd4 Nbd7 11. Nxg6 hxg6 12. h4 e5 13. Bc3 d4 14. Bd2 Bd6 15. b4 O-O {[%cal Oe5e4]} 16. Na3 {[%cal Bb1a3,Ba3c2,Bc2d4][%mdl 32]} Rfe8 17. Nc2 e4 18. Nxd4 exd3 19. e3 $1 c5 20. bxc5 Nxc5 21. O-O Rac8 22. Ba5 Nce4 $1 23. b3 Nxf2 24. Rxf2 $14 Rxe3 25. Nf3 {Dodges Be5} (25. Bxb7 Rb8 26. Bf3 (26. Bxa6 $2 Bc5 $19) 26... Bc5 $11) 25... Bxg3 26. Rff1 b5 (26... Ne4 $6 27. Ng5 Nf6 (27... f5 $2 28. Rad1 $18) 28. Rf3 (28. Bxb7 Rb8 $18) 28... Rxf3 29. Nxf3 $18 (29. Bxf3 Bxh4 30. Ne4 b5 $16)) 27. Bb6 Re2 28. c5 ({White should play} 28. Rfd1 $16) 28... Nd5 $2 {[#]} (28... Bf4 $11 {and Black is okay.}) 29. Nd4 $1 $18 (29. Rxa6 $2 Nf4 30. Kh1 Nxg2 $19 (30... Rxg2 $2 31. Ra7 $19)) 29... Ne3 {[%mdl 8192] Black cannot hold the game after this.} (29... Re5 $16) 30. Nxe2 dxe2 31. Rfc1 (31. Rxa6 $2 Nxf1 (31... e1=B $2 32. Bb7 $18) 32. Ra1 Nd2 $19 (32... e1=R $2 33. Rxe1 Bxe1 34. Bh3 $19) (32... Bxh4 $2 33. Bxf1 e1=Q 34. Rxe1 $19)) 31... Be5 (31... Re8 $142 32. Ba5 (32. Rxa6 Nxg2 33. Kxg2 e1=Q $11) (32. Bf3 Nf5 $18) 32... Nf5) 32. Ra2 (32. Rxa6 Nd1 33. Ba5 Bd4+ 34. Kh2 Be5+ 35. Kh1 b4 36. Bxb4 Nf2+ 37. Kg1 Nd3 $11) 32... Bd4 {[#] ( -> ...Nd1+)} 33. Kh2 Ng4+ 34. Kg3 Bf2+ (34... Bxc5 $142 35. Kxg4 (35. Bxc5 Rxc5 36. Raa1 e1=Q+ 37. Rxe1 Nf6 $18) 35... f5+ 36. Kf3 e1=Q 37. Rxe1 Bxb6 38. Rxa6 Bd4) 35. Kxg4 e1=Q 36. Rxe1 Bxe1 37. c6 f5+ 38. Kh3 Kf7 39. c7 (39. Bd5+ $142 Kf6 40. Bd4+ (40. Rxa6 Ke5 $18) 40... Ke7 41. Bc5+ (41. Rxa6 Kd6 $18) 41... Kd8 42. Bb6+ (42. Rxa6 Bc3 43. Ra7 Rc7 44. Ra8+ Rc8 45. Bb6+ Ke7 46. Rxc8 g5 47. hxg5 Kd6) 42... Rc7 43. Rxa6 (43. Bxc7+ Kxc7 44. Rxa6 Bf2 $18) 43... Bc3 44. Ra8+ (44. Bxc7+ Kxc7 45. Ra7+ Kd6 46. Rd7+ Ke5 47. c7 Kd4 48. c8=Q Kd3) 44... Ke7 45. Bxc7) 39... g5 {[%cal Bg6g5,Bg5g4][%mdl 32]} 40. Bb7 g4+ 41. Kg2 {Weighted Error Value: White=0.21 (precise) /Black=0.69.  Loses game:     	---       	Black=2      Mistake:       	White=1     	Black=3      Inaccurate:     	White=3     	Black=3      OK:         	White=15    	Black=7      Best:        	White=3     	Black=2      Strong:       	White=2     	Black=1} 1-0

[Event "45th FIDE Olympiad 2024"]
[Site "Budapest"]
[Date "2024.09.15"]
[Round "5.96"]
[White "Hassaballa, Ahmed Hassaballa"]
[Black "Lompo, Boammani Aser"]
[Result "1-0"]
[ECO "D02"]
[WhiteElo "1902"]
[BlackElo "1568"]
[PlyCount "89"]
[EventDate "2024.09.05"]
[EventType "team-tourn"]
[EventCountry "HUN"]
[WhiteTeam "Chad"]
[BlackTeam "Burkina Faso"]
[WhiteTeamCountry "CHD"]
[BlackTeamCountry "BUR"]
[TimeControl "40/5400+30:1800+30"]

1. c4 c6 2. d4 d5 3. cxd5 cxd5 4. Nf3 Nf6 5. g3 Nc6 6. Bg2 e6 7. O-O Be7 8. Nc3 O-O 9. a3 Bd7 10. Re1 Na5 11. Ne5 Nc6 12. Nxd7 Qxd7 13. Qd3 Rac8 14. Bg5 h6 15. Bd2 Rfd8 16. Rad1 Bf8 17. h3 Na5 18. Nxd5 Nxd5 19. Bxa5 b6 20. Bd2 Be7 21. e4 Nc7 22. Be3 Bf6 23. b4 Nb5 24. d5 Rc3 25. Qf1 Nxa3 26. dxe6 Qxe6 27. Rxd8+ Bxd8 28. Qa6 Qd7 29. Qe2 Bf6 30. Rd1 Qb5 31. Qg4 h5 32. Qf4 Rc8 33. Rd5 Qxb4 34. Rxh5 Nc4 35. Qf5 Rd8 36. Qh7+ Kf8 37. Bf4 Qe1+ 38. Kh2 Rd1 39. h4 Qg1+ 40. Kh3 g6 41. Rd5 Rxd5 42. exd5 Qxf2 43. d6 Qd4 44. Bh6+ Ke8 45. Bc6+ 1-0

[Event "45th FIDE Olympiad 2024"]
[Site "Budapest"]
[Date "2024.09.15"]
[Round "5.97"]
[White "Navara, David"]
[Black "Tissir, Mohamed"]
[Result "1-0"]
[ECO "B66"]
[WhiteElo "2681"]
[BlackElo "2355"]
[Annotator "TA"]
[PlyCount "75"]
[EventDate "2024.09.05"]
[EventType "team-tourn"]
[EventCountry "HUN"]
[SourceTitle "playchess.com"]
[Source "ChessBase"]
[SourceQuality "1"]
[WhiteTeam "Czech Republic"]
[BlackTeam "Morocco"]
[WhiteTeamCountry "CZE"]
[BlackTeamCountry "MAR"]
[TimeControl "40/5400+30:1800+30"]

{[%evp 20,75,40,48,41,37,37,26,13,35,39,44,33,36,54,38,48,28,51,-195,-187,-200,-177,-175,-189,-188,206,210,217,224,309,102,73,83,90,91,80,0,70,85,75,-4,29974,29970,29988,-132,29989,29990,29992,29993,29993,29994,29994,29995,29995,29996,29996,29997]} 1. e4 c5 2. Nf3 d6 3. d4 cxd4 4. Nxd4 Nf6 5. Nc3 Nc6 6. Bg5 e6 7. Qd2 a6 8. O-O-O Bd7 {[%cal Bc8d7,Bd7c6,Bc6b7][%mdl 32]} 9. f3 h6 10. Be3 Qc7 11. Kb1 Be7 12. g4 b5 13. Nxc6 Bxc6 {White has an edge.} 14. Rg1 d5 {[#]} 15. e5 $1 Nd7 {[%cal Bf6d7,Bd7c5,Bc5e4][%mdl 32]} (15... Qxe5 $2 16. Bf4 $18) 16. f4 Nc5 17. Qf2 Bb7 18. a3 O-O-O {[#]} 19. Bxb5 $2 axb5 $19 20. Nxb5 {[#]} Ne4 $1 21. Qe1 Qc4 22. Qa5 Rd7 $4 {[%mdl 8192]} (22... Kd7 $19 {avoids the disaster.} 23. Rd4 Qc6 24. Rxe4 Ra8 (24... dxe4 25. Rd1+ Ke8 26. Nc7+ $17)) 23. Rd4 $1 $18 {[%mdl 1024] White has strong compensation.} Qe2 {[%cal Oe7d8]} 24. Re1 Qg2 {[%cal Oe7d8]} 25. Bc1 $2 (25. Rd3 $1 $18 {is the precise move to win.}) 25... Bd8 $16 {[#]} (25... Qxg4 $2 26. Rexe4 Bc5 27. Qc3 $18 (27. h3 Qh4 $18)) 26. Qb4 $36 {[%cal Oe1e4][%mdl 2048] Black must now prevent Rexe4! Black is under strong pressure. Some like it hot} Be7 (26... Qxg4 27. Rexe4 Bc7 28. Na7+ Kb8 29. Qb5 $18 (29. Nc6+ Kc8 $18)) 27. Na7+ Kc7 (27... Kd8 $2 28. Nc6+ Ke8 (28... Bxc6 29. Qb8#) 29. Nxe7 $18) 28. Qa5+ Kb8 {[%cal Od7c7,Bc7b8,Bb8c8,Bc8d7,Bd7d8,Bd8e8][%mdl 32] [#] Hoping for ...Rc7!} 29. Rexe4 $1 Rc7 {[#]} 30. c4 dxe4 $2 {[%mdl 8192]} (30... Bc5 $11 31. Nb5 Rc6 (31... Rcc8 $2 32. b4 $18) 32. cxd5 Bxd4 33. Rxd4 Qc2+ 34. Ka2 Ra6) 31. Nb5 Rc6 32. Qa7+ Kc8 {[#]} 33. Rd7 $3 {[%mdl 512] White mates.} Kxd7 (33... Qc2+ 34. Kxc2) 34. Qxb7+ Kd8 35. Qxc6 Qe2 36. Qc7+ Ke8 37. Qc8+ Bd8 38. Nd6+ {Weighted Error Value: White=0.25 (precise) /Black=0.39.  Loses game:     	White=1     	Black=1      Missed win:     	White=1     	Black=1      Mistake:       	White=1     	---        Inaccurate:     	---       	Black=2      OK:         	White=9     	Black=6      Best:        	White=3     	Black=4      Strong:       	White=1     	Black=1      Brilliant:      	White=1     	---} 1-0

[Event "45th FIDE Olympiad 2024"]
[Site "Budapest"]
[Date "2024.09.15"]
[Round "5.97"]
[White "Bhakta, Bahadur Monger"]
[Black "Enemchukwu, Chinedu Benjamin"]
[Result "0-1"]
[ECO "A40"]
[WhiteElo "1911"]
[BlackElo "2001"]
[PlyCount "82"]
[EventDate "2024.09.05"]
[EventType "team-tourn"]
[EventCountry "HUN"]
[WhiteTeam "Bhutan"]
[BlackTeam "Saint Vincent and the Grenadines"]
[WhiteTeamCountry "BTN"]
[TimeControl "40/5400+30:1800+30"]

1. d4 e5 2. dxe5 d6 3. Nf3 Nc6 4. Bg5 f6 5. exf6 Nxf6 6. e3 Be6 7. c3 Be7 8. Bb5 O-O 9. Nbd2 Qe8 10. Nd4 Bd7 11. Bc4+ Kh8 12. N2f3 Ne4 13. Bxe7 Qxe7 14. h3 Rae8 15. O-O Rf6 16. Bd3 d5 17. Qc2 Ref8 18. Bxe4 dxe4 19. Nd2 Re8 20. Ne2 Bf5 21. Ng3 Bg6 22. Rad1 h5 23. Nb3 h4 24. Ne2 Bf7 25. Nf4 Qe5 26. Rd7 Ne7 27. Rd4 Nf5 28. Rd7 Kg8 29. Nd4 g5 30. Nfe2 Nh6 31. f4 exf3 32. gxf3 c5 33. Rf2 cxd4 34. exd4 Qe6 35. Rxb7 Qxh3 36. Qd3 g4 37. Rg2 Qxf3 38. Qc2 h3 39. Ng3 hxg2 40. Qxg2 Qxg2+ 41. Kxg2 Bd5+ {0-} 0-1